bitfinex-derivatives/quotes_ETHF0:USTF0_20241129
["timestamp","ask_amount","ask_price","bid_price","bid_amount"]
[1732847276618,6.27366,3588.0,3587.9,0.08712713]
[1732847276915,3.48646,3588.0,3587.9,0.08712713]
[1732847277220,3.48646,3588.0,3587.2,3.2078]
[1732847277221,0.27871,3587.3,3587.2,3.2078]
[1732847277408,0.27871,3587.3,3587.2,7.75275588]
[1732847277913,0.27871,3587.3,3587.2,10.54075588]
[1732847278112,0.27871,3587.3,3587.2,7.75275516]
[1732847279407,0.27866,3588.0,3587.6,0.27869]
[1732847279713,1.49328556,3588.3,3587.7,3.32275516]
[1732847280012,0.27866,3588.1,3587.8,40.91495516]
[1732847280208,0.27866,3588.0,3587.9,0.11495516]
[1732847280420,0.27866,3588.0,3587.9,3.71495516]
[1732847280717,0.27866,3588.0,3587.9,0.11495516]
[1732847280909,0.27866,3588.0,3587.8,40.8]
[1732847281115,0.27866,3588.0,3587.8,43.85]
[1732847281320,0.27866,3588.0,3587.9,0.11489393]
[1732847281811,0.27867,3587.9,3587.8,40.8]
[1732847282017,0.27867,3587.9,3587.8,40.91490664]
[1732847282823,0.27867,3587.9,3587.8,0.11490664]
[1732847283619,0.27867,3587.9,3587.7,40.8]
[1732847283924,0.27867,3587.9,3587.8,0.11496391]
[1732847284128,0.27867,3587.9,3587.8,0.11496688]
[1732847284421,0.27865,3588.1,3587.8,0.11496648]
[1732847284629,0.27867,3587.9,3587.7,40.8]
[1732847284822,0.27867,3587.9,3587.8,0.11499773]
[1732847285223,0.27868,3587.8,3587.7,40.8]
[1732847285925,0.27868,3587.8,3587.4,0.2787]
[1732847286125,3.27732782,3588.0,3587.5,0.11505005]
[1732847286326,0.27868,3587.8,3587.6,40.91505005]
[1732847286522,0.27868,3587.8,3587.7,0.11505005]
[1732847287221,6.49201789,3588.2,3587.7,0.11505005]
[1732847287222,3.55599782,3587.9,3587.7,0.11505005]
[1732847287426,0.27867,3587.9,3587.8,0.11508517]
[1732847287621,0.27868,3587.8,3587.6,40.8]
[1732847287826,0.27868,3587.8,3587.7,0.11508541]
[1732847288224,2.40088898,3587.8,3587.7,0.11508541]
[1732847288425,0.27868,3587.7,3587.2,3.2078]
[1732847288629,0.27871,3587.4,3587.3,0.1151011]
[1732847288931,0.27871,3587.4,3587.3,40.8]
[1732847289129,0.27871,3587.4,3587.3,40.88714006]
[1732847289629,0.27871,3587.4,3587.3,45.05223694]
[1732847290220,0.27871,3587.4,3587.3,0.08714006]
[1732847290221,2.40091898,3587.4,3587.3,0.08714006]
[1732847290421,4.90940898,3587.4,3585.9,7.51451406]
[1732847290628,4.90940898,3587.4,3585.6,8.61369535]
[1732847290629,0.27881,3586.1,3586.0,0.11515299]
[1732847290826,0.27881,3586.1,3586.0,40.91519542]
[1732847291323,4.13141091,3586.3,3585.6,3.2078]
[1732847291633,0.27883,3585.8,3585.7,0.11511598]
[1732847291830,0.27883,3585.9,3585.7,40.91511598]
[1732847292126,3.28021091,3586.1,3585.8,0.27883]
[1732847292328,3.28021091,3586.1,3585.7,41.07883]
[1732847292530,3.28021091,3586.2,3585.8,0.11504347]
[1732847292735,0.27881,3586.1,3585.7,40.8]
[1732847292928,0.8512,3586.3,3585.8,0.11504862]
[1732847293128,0.27883,3585.8,3585.7,40.8]
[1732847293334,0.27883,3585.8,3585.7,0.1150566]
[1732847294031,5.33000898,3586.0,3585.6,40.8]
[1732847294238,0.27884,3585.7,3585.6,40.8]
[1732847294532,0.27885,3585.6,3585.2,3.2078]
[1732847294726,0.27885,3585.6,3585.3,0.11492546]
[1732847294935,0.27885,3585.6,3585.4,0.11492546]
[1732847295237,0.27884,3585.7,3585.3,40.8]
[1732847295429,5.33000898,3586.0,3585.4,0.11484487]
[1732847295735,0.27885,3585.6,3585.3,40.8]
[1732847295938,0.27884,3585.8,3585.4,0.39369797]
[1732847296235,5.33000898,3586.0,3585.3,41.07887]
[1732847296431,0.27885,3585.6,3585.3,41.72]
[1732847297135,0.27886,3585.4,3585.3,41.72]
[1732847297332,0.27886,3585.4,3585.3,40.8]
[1732847297839,0.27888,3585.2,3584.7,3.48671]
[1732847298036,0.27888,3585.2,3584.8,0.11471317]
[1732847298237,0.4243,3585.4,3584.7,3.2078]
[1732847298438,0.4243,3585.4,3584.7,7.6678]
[1732847298638,0.27888,3585.3,3584.7,7.6678]
[1732847298940,0.4243,3585.4,3585.0,0.27889]
[1732847298941,0.70317,3585.4,3585.0,0.27889]
[1732847299129,0.27888,3585.2,3584.8,0.27891]
[1732847299633,0.27887,3585.3,3584.9,0.2789]
[1732847299835,0.4243,3585.4,3584.7,3.2078]
[1732847300030,0.27888,3585.2,3584.8,41.07891]
[1732847300336,0.4243,3585.4,3584.8,41.07891]
[1732847300337,0.27889,3585.1,3584.8,44.41891]
[1732847300532,0.4243,3585.4,3584.8,44.14]
[1732847300733,0.27887,3585.3,3584.9,0.2789]
[1732847300934,0.27887,3585.3,3584.9,3.9589]
[1732847301436,0.4243,3585.4,3585.1,0.27888]
[1732847301740,0.70317,3585.4,3585.1,4.27]
[1732847301950,0.70317,3585.4,3585.1,4.54888]
[1732847302344,0.4243,3585.4,3585.1,4.27]
[1732847302543,0.8553,3585.5,3585.1,7.4778]
[1732847302741,0.8553,3585.5,3585.2,0.27887]
[1732847302742,0.72686,3585.5,3585.2,0.27887]
[1732847302940,2.12220898,3585.6,3585.2,0.27887]
[1732847302941,2.40105898,3585.6,3585.3,0.27887]
[1732847303147,0.27886,3585.5,3585.3,3.71]
[1732847303439,0.27885,3585.5,3585.3,3.71]
[1732847304438,3.2078,3585.4,3585.3,3.71]
[1732847304635,3.2078,3585.4,3584.8,40.8]
[1732847304636,0.27887,3585.3,3584.8,41.0789]
[1732847304832,2.40108898,3585.2,3584.8,44.8589]
[1732847305036,0.27889,3585.1,3584.8,44.8589]
[1732847305232,2.40108898,3585.2,3584.8,44.8589]
[1732847305646,2.40108898,3585.2,3584.9,0.2789]
[1732847305844,2.40108898,3585.2,3584.9,4.1689]
[1732847306045,2.12220898,3585.2,3584.8,40.8]
[1732847306343,0.2789,3585.0,3584.8,40.8]
[1732847306541,1.2748,3585.1,3584.8,40.8]
[1732847306937,0.2789,3584.9,3584.8,40.8]
[1732847307144,0.2789,3585.0,3584.8,40.8]
[1732847307444,1.2748,3585.1,3584.6,3.2078]
[1732847307644,0.2789,3585.0,3584.7,0.27892]
[1732847307947,1.2748,3585.1,3584.7,40.8]
[1732847308245,1.55369,3585.1,3584.8,0.2789]
[1732847309840,1.2748,3585.1,3584.8,0.2789]
[1732847310048,0.27889,3585.0,3584.8,0.2789]
[1732847310344,1.55369,3585.1,3584.7,40.8]
[1732847310553,0.27889,3585.0,3584.8,0.27891]
[1732847310749,0.27889,3585.0,3584.7,40.8]
[1732847310951,1.2748,3585.1,3584.7,40.8]
[1732847311151,0.2789,3584.9,3584.7,40.8]
[1732847311348,2.12220898,3584.8,3584.7,40.8]
[1732847311852,2.12220898,3584.8,3584.7,41.07892]
[1732847312152,2.12220898,3584.8,3584.7,40.8]
[1732847312856,2.40111898,3584.8,3584.7,40.8]
[1732847315654,0.27889,3585.1,3584.8,4.3189]
[1732847316254,2.12220898,3585.2,3584.8,4.3189]
[1732847316255,2.12220898,3585.2,3585.0,0.27889]
[1732847316557,0.27889,3585.1,3585.0,3.67]
[1732847317553,2.12220898,3585.1,3585.0,3.67]
[1732847317754,2.12220898,3585.1,3585.0,3.94889]
[1732847318460,2.12220898,3585.1,3585.0,4.06382603]
[1732847319456,2.12220898,3585.5,3585.0,3.78493603]
[1732847319760,2.40106898,3585.5,3585.2,0.27887]
[1732847320060,2.12220898,3585.5,3585.4,0.27886]
[1732847320354,2.12220898,3585.5,3585.4,4.12379603]
[1732847322264,2.12220898,3585.5,3585.4,4.00886]
[1732847323552,0.2789,3585.0,3584.7,0.27892]
[1732847323760,2.12220898,3585.1,3584.3,0.4345]
[1732847324064,2.12220898,3584.7,3584.6,0.27892]
[1732847324260,2.12220898,3584.7,3584.6,4.66892]
[1732847326261,2.12220898,3584.7,3584.6,4.39]
[1732847326467,2.40112898,3584.7,3584.6,4.39]
[1732847327059,2.12220898,3584.7,3584.3,41.07894]
[1732847327261,0.27894,3584.4,3584.3,44.43]
[1732847327461,0.27894,3584.5,3584.3,44.43]
[1732847327767,2.12220898,3584.7,3584.3,44.43]
[1732847327966,2.12220898,3584.7,3584.3,44.70894]
[1732847328168,0.27893,3584.5,3584.3,44.43]
[1732847328467,0.27893,3584.5,3584.3,44.70895]
[1732847328870,0.27893,3584.5,3584.3,44.43]
[1732847329172,0.27894,3584.4,3584.3,3.63]
[1732847331973,2.12220898,3584.7,3584.2,44.0078]
[1732847332175,3.26465898,3584.3,3584.2,47.5778]
[1732847332370,3.26465898,3584.3,3584.2,3.2078]
[1732847333480,6.05425898,3584.3,3584.2,3.2078]
[1732847333781,3.26465898,3584.3,3584.2,3.2078]
[1732847334777,0.27898,3583.9,3583.8,40.8]
[1732847334972,2.40118898,3583.9,3583.8,1.4]
[1732847335173,2.12220898,3583.9,3583.8,1.67899]
[1732847335375,2.12220898,3583.9,3583.8,42.47899]
[1732847336272,2.12220898,3583.9,3583.8,42.2]
[1732847337979,2.12220898,3583.9,3583.8,42.47899]
[1732847338774,0.4278,3584.2,3584.1,0.27896]
[1732847339775,0.4278,3584.2,3584.1,4.14896]
[1732847340081,0.70676,3584.2,3584.1,3.87]
[1732847340282,0.4278,3584.2,3584.1,3.87]
[1732847340777,0.4278,3584.2,3584.1,4.14896]
[1732847341888,2.98570898,3584.3,3584.1,4.14896]
[1732847341889,2.12220898,3584.3,3584.1,3.87]
[1732847342177,0.4301,3584.6,3584.2,2.7904]
[1732847342487,0.4301,3584.6,3584.5,0.27893]
[1732847342681,0.4301,3584.6,3584.5,1.71893]
[1732847343078,0.4301,3584.6,3584.5,1.44]
[1732847343286,0.70902,3584.6,3584.5,1.44]
[1732847344694,0.70902,3584.6,3584.2,0.4256]
[1732847344695,2.60533364,3584.6,3584.4,0.27894]
[1732847344887,2.12220898,3584.5,3584.4,0.27894]
[1732847345082,2.12220898,3584.5,3584.2,0.4256]
[1732847345283,2.12220898,3584.5,3584.2,4.7556]
[1732847345478,2.12220898,3584.5,3584.3,0.27894]
[1732847345777,2.40114898,3584.5,3584.3,3.93]
[1732847346084,0.27899,3583.8,3583.5,3.48681]
[1732847346279,0.708,3583.7,3583.5,7.2978]
[1732847346479,1.5655,3583.7,3583.5,4.36901]
[1732847346689,1.5655,3583.7,3583.5,0.27901]
[1732847346890,1.2865,3583.7,3583.5,0.27901]
[1732847347382,4.29744262,3584.2,3583.6,2.7904]
[1732847347586,2.12220898,3584.2,3584.0,0.27897]
[1732847348182,2.12220898,3584.2,3583.8,3.2078]
[1732847348391,2.12220898,3584.2,3584.0,0.27896]
[1732847349592,2.12220898,3584.2,3584.1,0.27896]
[1732847350082,2.12220898,3584.2,3584.1,4.04896]
[1732847351796,0.429,3584.3,3584.2,0.27896]
[1732847351991,0.429,3584.3,3584.2,4.51896]
[1732847352187,0.4345,3584.4,3584.3,0.27895]
[1732847352796,0.4345,3584.4,3584.1,0.27896]
[1732847353089,0.4345,3584.4,3584.3,0.27895]
[1732847353296,0.71345,3584.4,3584.0,0.27897]
[1732847353492,2.12220898,3584.2,3584.1,0.27896]
[1732847353793,2.12220898,3584.2,3584.1,4.2]
[1732847353991,2.12220898,3584.2,3584.1,4.47896]
[1732847356092,2.17523364,3584.7,3584.1,7.68781]
[1732847356393,3.28021091,3584.9,3584.7,0.27892]
[1732847356592,2.18950525,3584.9,3584.5,0.4376]
[1732847356796,2.18950525,3584.9,3584.8,0.27891]
[1732847356992,2.18950525,3584.9,3584.5,0.8613]
[1732847357193,2.18950525,3584.9,3584.5,4.8613]
[1732847357384,2.18950525,3584.9,3584.7,0.27891]
[1732847357585,2.18950525,3584.9,3584.8,0.31329046]
[1732847358494,2.18950525,3584.9,3584.8,4.51048503]
[1732847358893,0.2789,3584.9,3584.8,4.51048503]
[1732847359195,6.34871091,3584.9,3584.8,0.12048503]
[1732847359394,7.15940891,3584.9,3584.1,0.27896]
[1732847359595,4.59097072,3584.5,3584.2,0.11834531]
[1732847359799,2.63832174,3584.4,3584.3,0.11834531]
[1732847359997,3.06552174,3584.4,3584.3,3.36834531]
[1732847360304,0.8757,3584.4,3584.3,3.36834531]
[1732847360492,3.06552174,3584.4,3584.3,3.36834531]
[1732847361197,0.8757,3584.4,3584.3,3.36834531]
[1732847361594,3.06552174,3584.4,3584.3,3.36834531]
[1732847362600,3.06552174,3584.4,3584.3,0.11834531]
[1732847362795,3.34446174,3584.4,3584.3,0.11834531]
[1732847363099,0.8757,3584.4,3584.3,0.39729531]
[1732847363400,0.4485,3584.4,3584.3,0.39730858]
[1732847363589,3.28473262,3584.6,3584.3,10.0674]
[1732847363590,2.18982174,3584.6,3584.3,10.0674]
[1732847363897,3.28473262,3584.7,3584.6,0.27892]
[1732847363898,2.18982174,3584.7,3584.6,0.27892]
[1732847364097,2.18982174,3584.7,3584.6,4.37726553]
[1732847364295,2.18982174,3584.8,3584.7,0.27892]
[1732847364598,2.19021839,3584.8,3584.7,4.25725553]
[1732847364794,2.19021839,3584.8,3584.7,0.11834553]
[1732847364997,5.6858416,3584.9,3584.7,0.11834553]
[1732847365301,5.6858416,3584.9,3584.8,0.11834553]
[1732847366303,2.40110898,3584.9,3584.8,0.11834553]
[1732847366693,2.12220898,3584.9,3584.8,0.11834553]
[1732847366896,2.40110898,3584.9,3584.8,0.1183302]
[1732847367094,2.12220898,3584.9,3584.8,0.1183302]
[1732847367998,2.12220898,3584.9,3584.8,0.3972402]
[1732847368201,5.40937457,3584.9,3584.8,0.3972402]
[1732847368499,5.40937457,3584.9,3584.8,0.1183302]
[1732847368500,2.12220898,3584.9,3584.8,0.1183302]
[1732847369403,6.49201789,3584.9,3584.8,0.1183302]
[1732847369796,6.77091789,3584.9,3584.8,0.1183302]
[1732847370002,6.77091789,3584.9,3584.8,0.11837814]
[1732847370200,6.77091789,3584.9,3584.5,0.27893]
[1732847370201,0.27891,3584.8,3584.5,0.27893]
[1732847370402,3.28972642,3584.6,3584.5,3.53893]
[1732847370805,3.28972642,3584.6,3584.5,3.65732056]
[1732847371002,3.28972642,3584.7,3584.6,0.27892]
[1732847371305,3.28972642,3584.7,3584.6,4.1]
[1732847371498,4.38601886,3584.8,3584.6,4.1]
[1732847371700,4.66493886,3584.7,3584.6,4.21839239]
[1732847371904,4.66493886,3584.7,3584.6,4.21840839]
[1732847372503,0.27892,3584.7,3584.6,4.21840839]
[1732847372909,0.27892,3584.7,3584.6,0.11840839]
[1732847373204,5.74113303,3584.7,3584.6,0.11840839]
[1732847374316,3.2078,3584.8,3584.3,3.2078]
[1732847374508,3.2078,3584.8,3584.4,0.11846318]
[1732847374809,0.27899,3583.8,3583.7,40.8]
[1732847375006,2.4730045,3583.8,3583.7,41.92]
[1732847375200,2.4730045,3583.8,3583.7,42.19899]
[1732847375201,2.1940145,3583.8,3583.7,42.19899]
[1732847375405,0.8578,3583.8,3583.7,42.19899]
[1732847375703,4.38802901,3583.9,3583.8,0.27899]
[1732847375911,4.38802901,3584.0,3583.9,0.27898]
[1732847376105,4.38802901,3584.0,3583.9,4.30148]
[1732847376805,5.48503626,3584.2,3584.0,0.27897]
[1732847377002,5.48503626,3584.2,3583.9,0.4325]
[1732847377196,5.48503626,3584.1,3583.9,4.3]
[1732847377397,5.76400626,3584.1,3583.8,0.27899]
[1732847377604,4.38735513,3583.9,3583.8,4.49899]
[1732847378405,4.38735513,3584.0,3583.8,4.49899]
[1732847380107,4.38735513,3583.9,3583.8,4.22]
[1732847380300,4.82315513,3583.9,3583.8,4.22]
[1732847380801,4.82315513,3583.9,3583.8,4.49899]
[1732847383409,0.4358,3583.9,3583.8,4.49899]
[1732847383709,0.4358,3583.9,3583.8,7.70679]
[1732847384109,2.19320594,3584.0,3583.8,7.4278]
[1732847384414,2.19320594,3584.0,3583.9,0.27898]
[1732847384711,2.19320594,3584.0,3583.9,0.58898]
[1732847385507,2.19320594,3584.1,3583.9,3.1004]
[1732847385714,2.19320594,3584.4,3584.0,7.53141406]
[1732847385910,2.19320594,3584.8,3584.3,7.51451406]
[1732847386213,2.19320594,3584.9,3584.7,0.27891]
[1732847386411,2.19320594,3584.9,3584.8,41.07891]
[1732847386612,2.19320594,3584.9,3584.8,45.11891]
[1732847386806,3.28994423,3585.0,3584.8,4.15802778]
[1732847387009,3.28994423,3585.0,3584.9,0.11802778]
[1732847387209,3.28994423,3585.0,3584.9,0.39692778]
[1732847387410,8.61995321,3585.1,3584.9,0.11802778]
[1732847387610,5.41215321,3585.1,3585.0,0.39691778]
[1732847388011,3.28994423,3585.2,3585.0,6.64762778]
[1732847388210,3.28994423,3585.2,3585.1,3.60471778]
[1732847388415,3.05314136,3585.3,3585.1,7.39582778]
[1732847388720,2.62094136,3585.3,3585.2,0.39690778]
[1732847388918,2.62094136,3585.3,3585.2,4.59690778]
[1732847390420,6.50956411,3585.5,3585.2,0.11802778]
[1732847390621,3.28530054,3585.3,3585.2,0.27888]
[1732847390911,3.28530054,3585.3,3585.2,0.39671404]
[1732847391620,3.28530054,3585.4,3585.3,0.27887]
[1732847391817,3.28530054,3585.4,3585.3,0.39670404]
[1732847392212,3.28530054,3585.4,3585.3,0.27887]
[1732847392812,3.28530054,3585.4,3585.3,0.39662943]
[1732847393116,3.28530054,3585.6,3585.5,0.27885]
[1732847393509,3.28530054,3585.7,3585.6,0.27885]
[1732847395827,3.28530054,3585.7,3585.6,3.85]
[1732847396027,3.28530054,3585.7,3585.6,4.12885]
[1732847396522,3.28530054,3585.8,3585.6,4.12885]
[1732847397623,2.18709096,3585.7,3585.6,4.12885]
[1732847397924,3.28530054,3585.8,3585.7,0.27884]
[1732847398120,5.60449994,3585.9,3585.7,4.27]
[1732847398321,5.60449994,3585.9,3585.8,0.27883]
[1732847398525,3.41740898,3585.9,3585.8,4.63883]
[1732847400619,3.41740898,3585.9,3585.8,4.36]
[1732847400822,8.39329994,3585.9,3585.1,3.2078]
[1732847401026,8.39329994,3585.9,3585.3,0.27887]
[1732847401027,2.12220898,3585.4,3585.3,0.27887]
[1732847401223,2.12220898,3585.4,3585.3,2.1]
[1732847401427,0.27889,3585.1,3584.6,0.27892]
[1732847401723,7.09809994,3585.4,3584.9,0.2789]
[1732847401724,0.8356,3585.0,3584.9,0.2789]
[1732847401926,0.4274,3585.3,3584.9,3.95]
[1732847402118,0.4274,3585.3,3585.2,0.27888]
[1732847402424,0.4274,3585.3,3585.2,4.10640366]
[1732847402624,3.28530054,3585.9,3585.2,6.61712366]
[1732847402625,2.12220898,3585.8,3585.2,6.61712366]
[1732847402926,3.28530054,3586.0,3585.9,0.27882]
[1732847402927,0.8356,3586.0,3585.9,0.27882]
[1732847403825,0.8356,3586.0,3585.7,0.406]
[1732847404022,0.8356,3586.0,3585.9,0.27882]
[1732847404219,0.8356,3586.0,3585.7,0.27883]
[1732847404428,0.8356,3586.0,3585.7,3.8]
[1732847404629,0.8356,3586.0,3585.8,0.27883]
[1732847404824,0.8356,3586.0,3585.8,4.19883]
[1732847405221,0.8356,3586.0,3585.8,3.92]
[1732847405429,0.8356,3586.0,3585.9,0.27882]
[1732847405632,0.8356,3586.0,3585.8,0.27883]
[1732847405931,0.8356,3586.0,3585.6,3.2078]
[1732847406229,0.8356,3586.0,3585.8,0.27883]
[1732847406426,0.8356,3586.0,3585.6,3.2078]
[1732847406630,0.8356,3586.0,3585.6,7.2578]
[1732847407132,0.8356,3586.0,3585.9,0.27882]
[1732847407431,0.8356,3586.0,3585.9,45.34882]
[1732847407727,0.8356,3586.0,3585.9,4.54882]
[1732847407934,0.4134,3586.1,3586.0,0.27882]
[1732847408132,2.18709096,3586.6,3586.0,50.6566]
[1732847408429,0.4483,3586.9,3586.8,0.27875]
[1732847408626,2.18709096,3587.2,3587.0,0.27874]
[1732847408827,0.4483,3587.1,3587.0,0.27874]
[1732847409232,2.12220898,3587.5,3587.0,7.008]
[1732847409434,2.12220898,3587.5,3587.4,3.2078]
[1732847409734,2.12220898,3587.5,3587.0,3.2078]
[1732847409735,4.90940898,3587.5,3587.0,3.2078]
[1732847409930,0.27875,3586.9,3586.3,3.48659]
[1732847410124,2.12220898,3586.6,3585.9,3.2078]
[1732847410335,2.12220898,3586.6,3586.2,0.2788]
[1732847410631,0.27879,3586.4,3585.9,3.2078]
[1732847410833,0.27879,3586.4,3585.5,3.2078]
[1732847411028,0.27878,3586.5,3585.7,0.11731834]
[1732847411226,0.27878,3586.5,3585.7,4.27]
[1732847411425,2.12220898,3586.2,3585.5,3.2078]
[1732847411728,0.8755,3586.1,3585.6,0.27884]
[1732847411932,1.2854,3586.1,3585.6,0.27884]
[1732847412131,1.2854,3586.1,3585.7,0.27883]
[1732847412334,1.2854,3586.1,3585.8,0.27883]
[1732847412644,0.4313,3586.1,3586.0,0.27882]
[1732847413243,0.4313,3586.1,3586.0,0.39631029]
[1732847413441,0.4393,3586.4,3586.0,0.39631029]
[1732847413745,0.4074,3586.3,3586.1,0.27881]
[1732847414239,0.4074,3586.3,3585.5,3.2078]
[1732847414445,0.4074,3586.3,3586.1,0.27881]
[1732847415540,0.4074,3586.3,3585.5,3.2078]
[1732847415839,3.2078,3585.7,3584.8,40.8]
[1732847416043,0.27888,3585.2,3584.9,0.11776467]
[1732847416247,2.12220898,3585.4,3585.0,0.11776467]
[1732847416538,2.40107898,3585.4,3585.1,0.11776467]
[1732847416745,2.40107898,3585.4,3584.8,40.8]
[1732847416746,0.27888,3585.2,3584.8,40.8]
[1732847417048,2.40106898,3585.4,3584.9,0.39668621]
[1732847417348,1.2574,3585.6,3585.0,0.11779621]
[1732847417639,1.2574,3585.6,3584.9,4.37]
[1732847417640,0.27887,3585.4,3585.1,0.11779621]
[1732847417842,0.27887,3585.4,3584.9,0.2789]
[1732847418142,0.27887,3585.3,3585.0,0.11779982]
[1732847418441,0.27887,3585.3,3585.1,0.11779925]
[1732847418639,1.2574,3585.6,3585.1,0.11779925]
[1732847418939,0.27886,3585.5,3585.2,0.11779795]
[1732847419136,1.53625,3585.6,3585.3,0.11777999]
[1732847419339,1.53625,3585.6,3585.1,0.27889]
[1732847419641,1.53625,3585.6,3585.2,0.11777619]
[1732847419946,1.53625,3585.6,3585.3,0.11777619]
[1732847420151,1.2574,3585.6,3585.0,0.4107]
[1732847420334,1.2574,3585.6,3585.1,0.27889]
[1732847420538,1.2574,3585.6,3585.1,4.75888]
[1732847420734,3.2078,3586.1,3585.3,3.2078]
[1732847420937,3.2078,3586.1,3585.6,0.27884]
[1732847421244,0.7067,3586.3,3585.8,0.27883]
[1732847421544,0.2788,3586.2,3585.9,0.11773758]
[1732847421745,0.2788,3586.2,3585.9,4.25]
[1732847421944,0.2788,3586.2,3586.0,0.11772689]
[1732847422148,0.2788,3586.2,3586.0,3.86]
[1732847422741,0.4279,3586.3,3586.0,3.86]
[1732847422742,0.70669,3586.3,3586.0,3.86]
[1732847422940,0.4279,3586.3,3586.0,3.86]
[1732847423242,0.7067,3586.3,3586.1,0.11773642]
[1732847423442,0.7067,3586.3,3585.7,41.07884]
[1732847423645,0.7067,3586.3,3585.8,0.11773943]
[1732847423844,0.2788,3586.2,3585.9,0.11773943]
[1732847424045,0.2788,3586.2,3586.0,0.11773943]
[1732847424342,0.4279,3586.3,3586.1,0.11773943]
[1732847424547,0.4279,3586.3,3586.2,0.1177642]
[1732847424844,0.4279,3586.3,3586.2,4.0377642]
[1732847425042,0.4279,3586.3,3586.2,3.92]
[1732847425248,0.4279,3586.3,3586.2,4.03779208]
[1732847425851,0.4279,3586.3,3586.2,6.82659208]
[1732847426643,0.4279,3586.3,3586.2,4.03779208]
[1732847426841,0.4279,3586.3,3586.2,6.82659208]
[1732847427043,0.4279,3586.3,3586.2,7.10539208]
[1732847427238,0.4279,3586.3,3586.2,4.31659208]
[1732847427652,2.60878857,3586.3,3586.2,4.31659208]
[1732847428144,2.60878857,3586.3,3586.2,4.1988]
[1732847428341,2.18088857,3586.3,3586.2,4.1988]
[1732847428849,2.18088857,3586.3,3586.2,6.7088]
[1732847429046,2.18088857,3586.7,3586.5,0.27878]
[1732847429249,2.18088857,3586.7,3586.5,4.23]
[1732847429449,3.48858857,3586.6,3586.5,4.50878]
[1732847429651,1.3077,3586.6,3586.5,4.50878]
[1732847429944,3.49239112,3586.6,3586.5,4.50878]
[1732847430551,3.49239112,3586.6,3586.5,4.23]
[1732847430753,1.3077,3586.6,3586.5,4.23]
[1732847431551,4.58473668,3586.6,3586.5,4.23]
[1732847432257,1.58647,3586.6,3586.5,4.23]
[1732847432952,5.95585224,3586.6,3586.5,4.23]
[1732847433652,0.27879,3586.4,3586.1,3.2078]
[1732847433859,3.28011906,3586.3,3586.1,7.5178]
[1732847434354,2.18679487,3586.2,3586.1,7.5178]
[1732847434557,3.28011906,3586.3,3586.1,7.5178]
[1732847434749,2.18687213,3586.2,3586.1,7.5178]
[1732847435051,1.58647,3586.6,3586.1,7.79661]
[1732847435243,0.2788,3586.2,3586.1,7.5178]
[1732847435456,3.49457213,3586.6,3586.1,7.5178]
[1732847435643,0.2788,3586.2,3586.1,7.5178]
[1732847435851,3.49457213,3586.6,3586.1,7.5178]
[1732847436254,0.2788,3586.2,3586.1,7.5178]
[1732847437649,2.46567213,3586.3,3586.1,7.5178]
[1732847437849,0.2788,3586.2,3586.1,7.5178]
[1732847438452,2.18687213,3586.4,3586.1,7.5178]
[1732847438755,0.27879,3586.3,3586.1,7.5178]
[1732847439452,2.46566213,3586.4,3586.1,7.5178]
[1732847439653,0.27879,3586.3,3586.1,7.5178]
[1732847440755,0.27879,3586.3,3586.2,0.11798243]
[1732847442153,2.18687213,3586.4,3586.2,0.11798243]
[1732847442352,2.18687213,3586.4,3586.3,0.11798243]
[1732847442553,2.18687213,3586.4,3586.3,3.84798243]
[1732847442858,4.58781906,3586.6,3586.3,3.84798243]
[1732847442859,2.18687213,3586.5,3586.3,3.84798243]
[1732847443153,2.18687213,3586.5,3586.3,3.73]
[1732847443154,4.37349209,3586.5,3586.3,3.73]
[1732847445760,7.58129209,3586.5,3586.3,3.73]
[1732847446261,4.37349209,3586.5,3586.3,3.73]
[1732847447153,4.37349209,3586.5,3585.2,7.13645519]
[1732847447154,4.37349209,3586.4,3585.3,0.4129]
[1732847447360,2.18813099,3585.8,3585.4,3.2078]
[1732847447556,2.18813099,3585.8,3585.5,41.07885]
[1732847447756,0.27886,3585.4,3585.0,3.2078]
[1732847447954,0.27888,3585.3,3585.0,7.7855]
[1732847448150,2.18813099,3585.3,3585.1,0.27888]
[1732847448359,3.28219649,3585.4,3585.2,40.8]
[1732847448661,3.28219649,3585.4,3585.2,44.7]
[1732847448858,3.28219649,3585.4,3585.2,3.9]
[1732847449059,0.27887,3585.3,3585.2,3.9]
[1732847449762,3.56106649,3585.3,3585.2,3.9]
[1732847449958,0.27887,3585.3,3585.2,3.9]
[1732847450760,1.56127,3585.4,3585.2,3.9]
[1732847450955,1.56126,3585.4,3585.2,3.9]
[1732847451364,2.18896881,3585.6,3585.3,0.27887]
[1732847451558,2.18896881,3585.6,3585.4,0.27886]
[1732847451861,0.4176,3585.7,3585.4,5.18396194]
[1732847452061,0.4176,3585.7,3585.5,0.11813908]
[1732847452255,0.4176,3585.7,3585.6,0.11813908]
[1732847452459,0.4176,3585.7,3585.6,4.20813908]
[1732847452965,0.27883,3585.8,3585.6,45.00813908]
[1732847453159,0.27883,3585.8,3585.7,0.11813908]
[1732847453355,0.27883,3585.8,3585.7,4.33813908]
[1732847453966,2.46779881,3585.8,3585.7,4.22]
[1732847454759,10.30777779,3585.8,3585.3,40.8]
[1732847454960,0.27886,3585.4,3585.3,2.75]
[1732847455160,0.27886,3585.4,3585.3,2.86806936]
[1732847455371,0.27886,3585.5,3585.3,2.86806936]
[1732847455659,0.27886,3585.5,3585.4,0.11806936]
[1732847455867,0.27886,3585.5,3585.4,0.11806436]
[1732847456371,2.18826027,3585.7,3585.4,0.11806436]
[1732847456562,0.27885,3585.6,3585.5,0.11806436]
[1732847457868,2.18826027,3585.7,3585.2,0.27888]
[1732847458061,2.18826027,3585.7,3585.2,4.18]
[1732847458367,0.27886,3585.5,3585.2,4.45887]
[1732847458756,0.27887,3585.4,3585.2,4.18]
[1732847460162,0.27885,3585.6,3585.2,4.18]